fUSD/lending_fUSD_20250824
["ID","MTS","AMOUNT","RATE_DAILY","PERIOD"]
[381128642,1756061441970,-400.0,0.00021917,2]
[381128644,1756061441981,-1000.17,0.00021917,2]
[381128646,1756061441991,-1000.17,0.00021917,2]
[381128648,1756061442000,-502.24,0.00021917,2]
[381128650,1756061442009,-151.0,0.00021917,2]
[381128652,1756061442018,-153.562067,0.00021917,2]
[381128654,1756061442029,-400.0,0.00021917,2]
[381128656,1756061442039,-1021.76,0.00021917,2]
[381128659,1756061442050,-454.67,0.00021917,2]
[381128661,1756061442060,-400.0,0.00021917,2]
[381128663,1756061442069,-400.0,0.00021917,2]
[381128665,1756061442079,-555.8,0.00021917,2]
[381128667,1756061442088,-609.83,0.00021917,2]
[381128669,1756061442097,-1440.34,0.00021917,2]
[381128671,1756061442106,-400.0,0.00021917,2]
[381128673,1756061442116,-400.0,0.00021917,2]
[381128675,1756061442125,-1339.46,0.00021917,2]
[381128677,1756061442134,-670.78,0.00021917,2]
[381128679,1756061442143,-400.0,0.00021917,2]
[381128680,1756061442152,-400.0,0.00021917,2]
[381128683,1756061442162,-724.72,0.00021917,2]
[381128684,1756061442171,-400.0,0.00021917,2]
[381128686,1756061442181,-400.0,0.00021917,2]
[381128689,1756061442190,-542.62,0.00021917,2]
[381128690,1756061442200,-3807.24,0.00021917,2]
[381128692,1756061442209,-1212.77,0.00021917,2]
[381128694,1756061442218,-400.0,0.00021917,2]
[381128696,1756061442230,-400.0,0.00021917,2]
[381128698,1756061442239,-448.91,0.00021917,2]
[381128700,1756061442249,-285.668383,0.00021917,2]
[381128702,1756061442258,-1071.85,0.00021917,2]
[381128704,1756061442268,-400.0,0.00021917,2]
[381128706,1756061442278,-400.0,0.00021917,2]
[381128708,1756061442287,-400.0,0.00021917,2]
[381128710,1756061442296,-400.0,0.00021917,2]
[381128712,1756061442305,-400.0,0.00021917,2]
[381128714,1756061442315,-1523.6,0.00021917,2]
[381128716,1756061442325,-1311.11,0.00021917,2]
[381128718,1756061442334,-500.0,0.00021917,2]
[381128719,1756061442343,-500.0,0.00021917,2]
[381128720,1756061442353,-680.55,0.00021917,2]
[381128721,1756061442364,-500.0,0.00021917,2]
[381128722,1756061442374,-500.0,0.00021917,2]
[381128723,1756061442383,-500.0,0.00021917,2]
[381128724,1756061442393,-500.0,0.00021917,2]
[381128726,1756061442403,-500.0,0.00021917,2]
[381128728,1756061442412,-500.0,0.00021917,2]
[381128730,1756061442422,-400.0,0.00021917,2]
[381128732,1756061442432,-400.0,0.00021917,2]
[381128734,1756061442441,-500.0,0.00021917,2]
[381128735,1756061442451,-519.27,0.00021917,2]
[381128736,1756061442459,-500.0,0.00021917,2]
[381128737,1756061442468,-500.0,0.00021917,2]
[381128738,1756061442479,-500.0,0.00021917,2]
[381128739,1756061442488,-500.0,0.00021917,2]
[381128740,1756061442498,-515.90924953,0.00021917,2]
[381128742,1756061442507,-746.01,0.00021917,2]
[381128743,1756061442516,-400.0,0.00021917,2]
[381128744,1756061442525,-313.98243731,0.00021917,2]
[381128745,1756061442534,-1139.15,0.00021917,2]
[381128746,1756061442543,-400.0,0.00021917,2]
[381128747,1756061442552,-1774.27,0.00021917,2]
[381128748,1756061442561,-400.0,0.00021917,2]
[381128749,1756061442571,-400.0,0.00021917,2]
[381128750,1756061442579,-400.0,0.00021917,2]
[381128751,1756061442589,-400.0,0.00021917,2]
[381128752,1756061442599,-400.0,0.00021917,2]
[381128753,1756061442608,-400.0,0.00021917,2]
[381128754,1756061442617,-400.0,0.00021917,2]
[381128755,1756061442626,-400.0,0.00021917,2]
[381128756,1756061442635,-759.8,0.00021917,2]
[381128757,1756061442644,-400.0,0.00021917,2]
[381128758,1756061442654,-925.08,0.00021917,2]
[381128759,1756061442663,-400.0,0.00021917,2]
[381128761,1756061442672,-400.0,0.00021917,2]
[381128763,1756061442681,-400.0,0.00021917,2]
[381128765,1756061442690,-988.69,0.00021917,2]
[381128766,1756061442699,-509.19069503,0.00021917,2]
[381128767,1756061442708,-723.32,0.00021917,2]
[381128768,1756061442717,-151.0,0.00021917,2]
[381128769,1756061442726,-222.304756,0.00021917,2]
[381128770,1756061442739,-400.0,0.00021917,2]
[381128771,1756061442748,-500.0,0.00021917,2]
[381128772,1756061442757,-400.0,0.00021917,2]
[381128773,1756061442766,-500.0,0.00021917,2]
[381128775,1756061442775,-400.0,0.00021917,2]
[381128776,1756061442785,-200.3253665,0.00021917,2]
[381128777,1756061442798,-229.82389007,0.00021917,2]
[381128778,1756061442807,-400.0,0.00021917,2]
[381128779,1756061442816,-404.09007512,0.00021917,2]
[381128780,1756061442827,-977.96,0.00021917,2]
[381128781,1756061442837,-400.0,0.00021917,2]
[381128782,1756061442846,-400.0,0.00021917,2]
[381128783,1756061442855,-1100.41,0.00021917,2]
[381128784,1756061442865,-13735.55,0.00021917,2]
[381128785,1756061442874,-400.0,0.00021917,2]
[381128786,1756061442883,-400.0,0.00021917,2]
[381128788,1756061442893,-400.0,0.00021917,2]
[381128789,1756061442902,-572.2,0.00021917,2]
[381128791,1756061442911,-500.0,0.00021917,2]
[381128793,1756061442921,-500.0,0.00021917,2]
[381128795,1756061442932,-500.0,0.00021917,2]
[381128797,1756061442941,-500.0,0.00021917,2]
[381128799,1756061442950,-500.0,0.00021917,2]
[381128801,1756061442959,-500.0,0.00021917,2]
[381128803,1756061442968,-500.0,0.00021917,2]
[381128805,1756061442977,-400.0,0.00021917,2]
[381128807,1756061442989,-500.0,0.00021917,2]
[381128809,1756061442998,-500.0,0.00021917,2]
[381128811,1756061443007,-1930.18,0.00021917,2]
[381128813,1756061443016,-805.4,0.00021917,2]
[381128815,1756061443025,-400.0,0.00021917,2]
[381128817,1756061443034,-500.0,0.00021917,2]
[381128819,1756061443043,-500.0,0.00021917,2]
[381128821,1756061443052,-500.0,0.00021917,2]
[381128823,1756061443061,-500.0,0.00021917,2]
[381128825,1756061443070,-400.0,0.00021917,2]
[381128827,1756061443080,-500.0,0.00021917,2]
[381128829,1756061443089,-500.0,0.00021917,2]
[381128831,1756061443098,-403.56182296,0.00021917,2]
[381128833,1756061443107,-400.0,0.00021917,2]
[381128835,1756061443116,-500.0,0.00021917,2]
[381128837,1756061443126,-500.0,0.00021917,2]
[381128839,1756061443135,-777.8,0.00021917,2]
[381128841,1756061443144,-500.0,0.00021917,2]
[381128843,1756061443153,-500.0,0.00021917,2]
[381128845,1756061443162,-1051.38,0.00021917,2]
[381128847,1756061443171,-400.0,0.00021917,2]
[381128849,1756061443181,-1061.87,0.00021917,2]
[381128852,1756061443190,-400.0,0.00021917,2]
[381128854,1756061443199,-516.59843235,0.00021917,2]
[381128856,1756061443208,-1194.33,0.00021917,2]
[381128858,1756061443218,-151.0,0.00021917,2]
[381128860,1756061443227,-400.0,0.00021917,2]
[381128862,1756061443239,-500.0,0.00021917,2]
[381128864,1756061443248,-500.0,0.00021917,2]
[381128866,1756061443258,-400.0,0.00021917,2]
[381128868,1756061443267,-500.0,0.00021917,2]
[381128870,1756061443277,-400.0,0.00021917,2]
[381128872,1756061443287,-500.0,0.00021917,2]
[381128875,1756061443297,-500.0,0.00021917,2]
[381128878,1756061443307,-542.54960031,0.00021917,2]
[381128881,1756061443316,-489.33,0.00021917,2]
[381128884,1756061443325,-1150.98,0.00021917,2]
[381128887,1756061443334,-610.02,0.00021917,2]
[381128890,1756061443344,-400.0,0.00021917,2]
[381128893,1756061443354,-781.52,0.00021917,2]
[381128896,1756061443363,-595.38,0.00021917,2]
[381128899,1756061443373,-1085.33,0.00021917,2]
[381128901,1756061443382,-877.23,0.00021917,2]
[381128903,1756061443391,-706.41,0.00021917,2]
[381128905,1756061443400,-1189.74,0.00021917,2]
[381128907,1756061443410,-400.0,0.00021917,2]
[381128911,1756061443420,-151.0,0.00021917,2]
[381128914,1756061443429,-151.0,0.00021917,2]
[381128916,1756061443439,-477.83,0.00021917,2]
[381128918,1756061443448,-151.0,0.00021917,2]
[381128920,1756061443458,-2967.8305114,0.00021917,2]
[381128922,1756061443467,-151.0,0.00021917,2]
[381128924,1756061443476,-400.0,0.00021917,2]
[381128926,1756061443488,-151.0,0.00021917,2]
[381128927,1756061443496,-151.0,0.00021917,2]
[381128928,1756061443505,-151.0,0.00021917,2]
[381128929,1756061443515,-400.0,0.00021917,2]
[381128930,1756061443525,-151.0,0.00021917,2]
[381128931,1756061443534,-151.0,0.00021917,2]
[381128932,1756061443544,-163.290921,0.00021917,2]
[381128933,1756061443553,-151.0,0.00021917,2]
[381128934,1756061443563,-151.0,0.00021917,2]
[381128935,1756061443572,-2035.08,0.00021917,2]
[381128936,1756061443582,-400.0,0.00021917,2]
[381128937,1756061443591,-1382.22,0.00021917,2]
[381128938,1756061443601,-1048.67,0.00021917,2]
[381128939,1756061443610,-400.0,0.00021917,2]
[381128940,1756061443620,-1180.31,0.00021917,2]
[381128941,1756061443629,-400.0,0.00021917,2]
[381128942,1756061443639,-164.39056074,0.00021917,2]
[381128943,1756061443648,-400.0,0.00021917,2]
[381128944,1756061443658,-1263.87,0.00021917,2]
[381128945,1756061443667,-400.0,0.00021917,2]
[381128946,1756061443676,-1146.94,0.00021917,2]
[381128947,1756061443685,-497.4,0.00021917,2]
[381128948,1756061443695,-400.0,0.00021917,2]
[381128949,1756061443704,-487.54,0.00021917,2]
[381128950,1756061443713,-400.0,0.00021917,2]
[381128951,1756061443724,-151.0,0.00021917,2]
[381128952,1756061443735,-400.0,0.00021917,2]
[381128953,1756061443744,-400.0,0.00021917,2]
[381128954,1756061443754,-493.78829814,0.00021917,2]
[381128955,1756061443763,-756.0,0.00021917,2]
[381128956,1756061443773,-1034.67,0.00021917,2]
[381128957,1756061443782,-400.0,0.00021917,2]
[381128958,1756061443792,-400.0,0.00021917,2]
[381128959,1756061443805,-400.0,0.00021917,2]
[381128960,1756061443815,-1000.0,0.00021917,2]
[381128961,1756061443825,-1276.74,0.00021917,2]
[381128962,1756061443835,-500.0,0.00021917,2]
[381128963,1756061443846,-960.16,0.00021917,2]
[381128964,1756061443855,-500.0,0.00021917,2]
[381128965,1756061443864,-400.0,0.00021917,2]
[381128966,1756061443874,-143.96021423,0.00021917,2]
[381129049,1756061445186,-356.03978577,0.00021917,2]
[381129050,1756061445196,-392.2291499,0.00021917,2]
[381129051,1756061445208,-107.7708501,0.00021917,2]
[381129052,1756061445218,-500.0,0.00021917,2]
[381129053,1756061445228,-500.0,0.00021917,2]
[381129054,1756061445239,-400.0,0.00021917,2]
[381129055,1756061445249,-500.0,0.00021917,2]
[381129056,1756061445258,-500.0,0.00021917,2]
[381129057,1756061445268,-1126.27,0.00021917,2]
[381129058,1756061445277,-553.64,0.00021917,2]
[381129059,1756061445287,-500.0,0.00021917,2]
[381129060,1756061445297,-1071.74,0.00021917,2]
[381129061,1756061445308,-400.0,0.00021917,2]
[381129062,1756061445317,-400.0,0.00021917,2]
[381129063,1756061445327,-875.52,0.00021917,2]
[381129064,1756061445336,-3293.96,0.00021917,2]
[381129065,1756061445346,-400.0,0.00021917,2]
[381129066,1756061445355,-1513.25,0.00021917,2]
[381129067,1756061445365,-400.0,0.00021917,2]
[381129068,1756061445374,-400.0,0.00021917,2]
[381129069,1756061445383,-1287.42,0.00021917,2]
[381129070,1756061445393,-400.0,0.00021917,2]
[381129071,1756061445402,-1334.19,0.00021917,2]
[381129072,1756061445411,-400.0,0.00021917,2]
[381129073,1756061445421,-581.33,0.00021917,2]
[381129074,1756061445431,-581.33,0.00021917,2]
[381129075,1756061445440,-581.33,0.00021917,2]
[381129076,1756061445450,-400.0,0.00021917,2]
[381129077,1756061445460,-581.33,0.00021917,2]
[381129078,1756061445469,-400.0,0.00021917,2]
[381129079,1756061445478,-581.33,0.00021917,2]
[381129080,1756061445491,-581.33,0.00021917,2]
[381129081,1756061445500,-920.24,0.00021917,2]
[381129082,1756061445510,-670.81,0.00021917,2]
[381129083,1756061445519,-508.16,0.00021917,2]
[381129084,1756061445528,-400.0,0.00021917,2]
[381129086,1756061445538,-581.33,0.00021917,2]
[381129088,1756061445547,-581.33,0.00021917,2]
[381129090,1756061445556,-151.0,0.00021917,2]
[381129092,1756061445565,-151.0,0.00021917,2]
[381129094,1756061445575,-955.15,0.00021917,2]
[381129096,1756061445584,-400.0,0.00021917,2]
[381129098,1756061445594,-151.0,0.00021917,2]
[381129100,1756061445603,-151.0,0.00021917,2]
[381129102,1756061445613,-733.64,0.00021917,2]
[381129104,1756061445622,-151.0,0.00021917,2]
[381129106,1756061445633,-151.0,0.00021917,2]
[381129108,1756061445641,-400.0,0.00021917,2]
[381129110,1756061445651,-400.0,0.00021917,2]
[381129112,1756061445660,-151.0,0.00021917,2]
[381129114,1756061445670,-2230.52408796,0.00021917,2]
[381129117,1756061445688,-127.27591204,0.00021917,2]
[381129119,1756061445697,-243.126352,0.00021917,2]
[381129121,1756061445707,-17.1997694,0.00021917,2]
[381129124,1756061445718,-382.8002306,0.00021917,2]
[381129126,1756061445728,-400.0,0.00021917,2]
[381129128,1756061445738,-700.91,0.00021917,2]
[381129129,1756061445747,-772.95,0.00021917,2]
[381129132,1756061445757,-151.0,0.00021917,2]
[381129134,1756061445766,-151.0,0.00021917,2]
[381129136,1756061445775,-151.0,0.00021917,2]
[381129137,1756061445785,-93.2697694,0.00021917,2]
[381129145,1756061445850,-819.4802306,0.00021917,2]
[381129147,1756061445859,-151.0,0.00021917,2]
[381129149,1756061445873,-151.0,0.00021917,2]
[381129151,1756061445882,-151.0,0.00021917,2]
[381129153,1756061445891,-400.0,0.00021917,2]
[381129155,1756061445901,-400.0,0.00021917,2]
[381129157,1756061445910,-151.0,0.00021917,2]
[381129159,1756061445920,-185.5378033,0.00021917,2]
[381129164,1756061445960,-906.2821967,0.00021917,2]
[381129166,1756061445970,-114.85004195,0.00021917,2]
[381129169,1756061445981,-36.14995805,0.00021917,2]
[381129171,1756061445992,-1152.07,0.00021917,2]
[381129173,1756061446001,-150.25987786,0.00021917,2]
[381129190,1756061446319,-0.74012214,0.00021917,2]
[381129191,1756061446328,-1689.43,0.00021917,2]
[381129192,1756061446338,-375.76196633,0.00021917,2]
[381129193,1756061446347,-400.0,0.00021917,2]
[381129194,1756061446356,-732.41,0.00021917,2]
[381129195,1756061446366,-400.0,0.00021917,2]
[381129196,1756061446375,-400.0,0.00021917,2]
[381129197,1756061446385,-151.0,0.00021917,2]
[381129198,1756061446394,-151.0,0.00021917,2]
[381129199,1756061446403,-151.0,0.00021917,2]
[381129200,1756061446413,-151.0,0.00021917,2]
[381129201,1756061446422,-151.0,0.00021917,2]
[381129202,1756061446431,-151.0,0.00021917,2]
[381129203,1756061446441,-151.0,0.00021917,2]
[381129204,1756061446451,-151.0,0.00021917,2]
[381129205,1756061446460,-151.0,0.00021917,2]
[381129206,1756061446469,-151.0,0.00021917,2]
[381129207,1756061446478,-151.0,0.00021917,2]
[381129208,1756061446490,-731.6,0.00021917,2]
[381129209,1756061446499,-400.0,0.00021917,2]
[381129210,1756061446509,-278.271141,0.00021917,2]
[381129211,1756061446518,-151.0,0.00021917,2]
[381129212,1756061446528,-1302.17,0.00021917,2]
[381129213,1756061446537,-151.0,0.00021917,2]
[381129214,1756061446546,-1211.92,0.00021917,2]
[381129215,1756061446555,-524.68580986,0.00021917,2]
[381129216,1756061446564,-151.0,0.00021917,2]
[381129217,1756061446574,-151.0,0.00021917,2]
[381129218,1756061446583,-151.0,0.00021917,2]
[381129219,1756061446592,-151.0,0.00021917,2]
[381129220,1756061446601,-801.96,0.00021917,2]
[381129221,1756061446613,-543.29,0.00021917,2]
[381129222,1756061446623,-1410.03,0.00021917,2]
[381129223,1756061446632,-400.0,0.00021917,2]
[381129224,1756061446641,-1316.96,0.00021917,2]
[381129225,1756061446651,-430.83,0.00021917,2]
[381129226,1756061446660,-151.0,0.00021917,2]
[381129227,1756061446669,-880.33,0.00021917,2]
[381129228,1756061446679,-418.62,0.00021917,2]
[381129229,1756061446689,-151.0,0.00021917,2]
[381129230,1756061446698,-865.77,0.00021917,2]
[381129231,1756061446707,-400.0,0.00021917,2]
[381129232,1756061446717,-151.0,0.00021917,2]
[381129233,1756061446726,-151.0,0.00021917,2]
[381129234,1756061446736,-151.0,0.00021917,2]
[381129235,1756061446745,-151.0,0.00021917,2]
[381129236,1756061446755,-400.0,0.00021917,2]
[381129237,1756061446764,-1561.23,0.00021917,2]
[381129238,1756061446774,-400.0,0.00021917,2]
[381129239,1756061446783,-400.0,0.00021917,2]
[381129240,1756061446792,-151.0,0.00021917,2]
[381129241,1756061446805,-151.0,0.00021917,2]
[381129242,1756061446815,-453.14,0.00021917,2]
[381129243,1756061446825,-151.0,0.00021917,2]
[381129244,1756061446835,-1386.56,0.00021917,2]
[381129245,1756061446845,-199.7484,0.00021917,2]
[381129246,1756061446854,-1138.59,0.00021917,2]
[381129247,1756061446863,-636.2,0.00021917,2]
[381129248,1756061446876,-491.75,0.00021917,2]
[381129249,1756061446886,-1147.8,0.00021917,2]
[381129250,1756061446895,-400.0,0.00021917,2]
[381129251,1756061446905,-1623.82,0.00021917,2]
[381129252,1756061446914,-400.0,0.00021917,2]
[381129253,1756061446924,-154.62974384,0.00021917,2]
[381129254,1756061446965,-246.08398341,0.00021917,2]
[381129255,1756061446974,-764.21,0.00021917,2]
[381129256,1756061446984,-341.59495327,0.00021917,2]
[381129267,1756061447457,-157.13945362,0.00021817,2]
[381129268,1756061447467,-2121.89927213,0.00021917,8]
[381129269,1756061447479,-1796.94414173,0.00021917,8]
[381129270,1756061447491,-953.06571465,0.00021917,8]
[381129271,1756061447502,-298.56266625,0.00021917,8]
[381129272,1756061447515,-24514.56793312,0.00021917,8]
[381129273,1756061447531,-32184.66420069,0.00021917,8]
[381129274,1756061447549,-4449.18540763,0.00021917,8]
[381129275,1756061448037,-21766.23245509,0.00021917,8]
[381129276,1756061448922,-411.11197881,0.00019106,2]
[381129277,1756061448932,-500.0,0.00019106,2]
[381129278,1756061448942,-500.0,0.00019106,2]
[381129279,1756061448952,-372.71423541,0.00019106,2]
[381129280,1756061448962,-5013.34824788,0.00021917,8]
[381129281,1756061448994,-265.539445,0.00021917,8]
[381129282,1756061449006,-1450.85,0.00021917,8]
[381129283,1756061449019,-616.15,0.00021917,8]
[381129284,1756061449100,-251499.54712506,0.00021917,8]
[381129285,1756061449110,-1307.24504673,0.00021917,2]
[381129286,1756061449119,-400.0,0.00021917,2]
[381129287,1756061449129,-400.0,0.00021917,2]
[381129288,1756061449139,-400.0,0.00021917,2]
[381129289,1756061449148,-400.0,0.00021917,2]
[381129290,1756061449159,-1426.68,0.00021917,2]
[381129291,1756061449168,-2210.74,0.00021917,2]
[381129292,1756061449178,-786.22,0.00021917,2]
[381129293,1756061449188,-400.0,0.00021917,2]
[381129294,1756061449198,-400.0,0.00021917,2]
[381129295,1756061449208,-768.61,0.00021917,2]
[381129296,1756061449218,-511.15,0.00021917,2]
[381129297,1756061449228,-400.0,0.00021917,2]
[381129298,1756061449239,-724.14,0.00021917,2]
[381129299,1756061449249,-400.0,0.00021917,2]
[381129300,1756061449259,-400.0,0.00021917,2]
[381129301,1756061449269,-151.0,0.00021917,2]
[381129302,1756061449279,-151.0,0.00021917,2]
[381129303,1756061449289,-182.442158,0.00021917,2]
[381129304,1756061449299,-766.34,0.00021917,2]
[381129305,1756061449309,-1239.14,0.00021917,2]
[381129306,1756061449320,-1602.29,0.00021917,2]
[381129307,1756061449329,-400.0,0.00021917,2]
[381129308,1756061449339,-1543.17,0.00021917,2]
[381129309,1756061449348,-400.0,0.00021917,2]
[381129310,1756061449358,-400.0,0.00021917,2]
[381129311,1756061449368,-400.0,0.00021917,2]
[381129312,1756061449377,-771.91,0.00021917,2]
[381129313,1756061449387,-400.0,0.00021917,2]
[381129314,1756061449396,-400.0,0.00021917,2]
[381129315,1756061449406,-400.0,0.00021917,2]
[381129316,1756061449415,-400.0,0.00021917,2]
[381129317,1756061449425,-400.0,0.00021917,2]
[381129318,1756061449434,-400.0,0.00021917,2]
[381129319,1756061449443,-400.0,0.00021917,2]
[381129320,1756061449452,-743.33,0.00021917,2]
[381129321,1756061449462,-1006.0,0.00021917,2]
[381129322,1756061449471,-1737.97,0.00021917,2]
[381129323,1756061449481,-400.0,0.00021917,2]
[381129324,1756061449490,-400.0,0.00021917,2]
[381129325,1756061449499,-400.0,0.00021917,2]
[381129326,1756061449509,-400.0,0.00021917,2]
[381129327,1756061449518,-1604.95,0.00021917,2]
[381129328,1756061449527,-1197.2,0.00021917,2]
[381129329,1756061449537,-1724.79,0.00021917,2]
[381129330,1756061449546,-400.0,0.00021917,2]
[381129331,1756061449556,-951.7,0.00021917,2]
[381129332,1756061449566,-399.01319849,0.00021917,2]
[381129333,1756061449575,-400.0,0.00021917,2]
[381129334,1756061449585,-400.0,0.00021917,2]
[381129335,1756061449595,-151.0,0.00021917,2]
[381129336,1756061449609,-400.0,0.00021917,2]
[381129337,1756061449618,-400.0,0.00021917,2]
[381129338,1756061449627,-427.64,0.00021917,2]
[381129339,1756061449637,-400.0,0.00021917,2]
[381129340,1756061449647,-400.0,0.00021917,2]
[381129341,1756061449656,-400.0,0.00021917,2]
[381129342,1756061449665,-400.0,0.00021917,2]
[381129343,1756061449675,-400.0,0.00021917,2]
[381129344,1756061449684,-151.0,0.00021917,2]
[381129345,1756061449694,-151.0,0.00021917,2]
[381129346,1756061449703,-400.0,0.00021917,2]
[381129347,1756061449712,-1011.5,0.00021917,2]
[381129348,1756061449722,-151.0,0.00021917,2]
[381129349,1756061449731,-1403.02,0.00021917,2]
[381129350,1756061449742,-878.43,0.00021917,2]
[381129351,1756061449751,-535.24,0.00021917,2]
[381129352,1756061449760,-516.51,0.00021917,2]
[381129353,1756061449769,-151.0,0.00021917,2]
[381129354,1756061449778,-1013.54,0.00021917,2]
[381129355,1756061449788,-1501.97,0.00021917,2]
[381129356,1756061449800,-512.84,0.00021917,2]
[381129357,1756061449811,-801.39,0.00021917,2]
[381129358,1756061449824,-400.0,0.00021917,2]
[381129359,1756061449834,-400.0,0.00021917,2]
[381129360,1756061449846,-475.42,0.00021917,2]
[381129361,1756061449858,-400.0,0.00021917,2]
[381129362,1756061449868,-606.16,0.00021917,2]
[381129363,1756061449878,-400.0,0.00021917,2]
[381129364,1756061449887,-400.0,0.00021917,2]
[381129365,1756061449897,-400.0,0.00021917,2]
[381129366,1756061449907,-734.13,0.00021917,2]
[381129367,1756061449916,-418.81,0.00021917,2]
[381129368,1756061449925,-400.0,0.00021917,2]
[381129369,1756061449935,-1417.81,0.00021917,2]
[381129370,1756061449944,-151.0,0.00021917,2]
[381129371,1756061449954,-1519.58,0.00021917,2]
[381129372,1756061449964,-2550.08,0.00021917,2]
[381129373,1756061449973,-400.0,0.00021917,2]
[381129374,1756061449983,-151.0,0.00021917,2]
[381129375,1756061449994,-400.0,0.00021917,2]
[381129376,1756061450003,-400.0,0.00021917,2]
[381129377,1756061450013,-400.0,0.00021917,2]
[381129378,1756061450022,-400.0,0.00021917,2]
[381129379,1756061450032,-2465.53,0.00021917,2]
[381129380,1756061450041,-400.0,0.00021917,2]
[381129381,1756061450051,-400.0,0.00021917,2]
[381129382,1756061450061,-4275.93,0.00021917,2]
[381129383,1756061450070,-748.26,0.00021917,2]
[381129384,1756061450080,-151.0,0.00021917,2]
[381129385,1756061450089,-400.0,0.00021917,2]
[381129386,1756061450099,-151.0,0.00021917,2]
[381129387,1756061450108,-151.0,0.00021917,2]
[381129388,1756061450118,-151.0,0.00021917,2]
[381129389,1756061450127,-400.0,0.00021917,2]
[381129390,1756061450137,-151.0,0.00021917,2]
[381129391,1756061450146,-400.0,0.00021917,2]
[381129392,1756061450156,-1185.45,0.00021917,2]
[381129393,1756061450165,-151.0,0.00021917,2]
[381129394,1756061450175,-1098.03,0.00021917,2]
[381129395,1756061450185,-151.0,0.00021917,2]
[381129396,1756061450194,-151.0,0.00021917,2]
[381129397,1756061450204,-151.0,0.00021917,2]
[381129398,1756061450213,-151.0,0.00021917,2]
[381129399,1756061450222,-161.830096,0.00021917,2]
[381129400,1756061450232,-151.0,0.00021917,2]
[381129401,1756061450241,-239.38849005,0.00021917,2]
[381129402,1756061450251,-217.560538,0.00021917,2]
[381129403,1756061450260,-400.0,0.00021917,2]
[381129404,1756061450270,-400.0,0.00021917,2]
[381129405,1756061450280,-1640.35,0.00021917,2]
[381129406,1756061450290,-400.0,0.00021917,2]
[381129407,1756061450299,-538.9896045,0.00021917,2]
[381129408,1756061450308,-673.38,0.00021917,2]
[381129409,1756061450318,-400.0,0.00021917,2]
[381129410,1756061450328,-568.29,0.00021917,2]
[381129411,1756061450337,-741.16,0.00021917,2]
[381129412,1756061450347,-400.0,0.00021917,2]
[381129413,1756061450357,-1071.02,0.00021917,2]
[381129414,1756061450366,-400.0,0.00021917,2]
[381129415,1756061450376,-400.0,0.00021917,2]
[381129416,1756061450385,-400.0,0.00021917,2]
[381129417,1756061450395,-151.0,0.00021917,2]
[381129418,1756061450404,-912.12,0.00021917,2]
[381129419,1756061450414,-151.0,0.00021917,2]
[381129420,1756061450424,-400.0,0.00021917,2]
[381129421,1756061450434,-151.0,0.00021917,2]
[381129422,1756061450444,-151.0,0.00021917,2]
[381129423,1756061450453,-400.0,0.00021917,2]